bitfinex/quotes_BTCUSD_20220201
["timestamp","ask_amount","ask_price","bid_price","bid_amount"]
[1643758163973,0.064415,38810.0,38806.0,0.07713688]
[1643758163974,0.23897142,38808.0,38806.0,0.07713688]
[1643758164178,0.54925397,38807.0,38806.0,0.07713688]
[1643758164776,0.397176,38807.0,38806.0,0.07713688]
[1643758164975,0.40476807,38807.0,38806.0,0.07713688]
[1643758165176,0.60023466,38807.0,38804.0,0.138829]
[1643758165377,0.064416,38806.0,38804.0,0.138829]
[1643758165591,0.81831404,38805.0,38804.0,0.138829]
[1643758165776,0.86831404,38805.0,38804.0,0.138829]
[1643758166175,1.07559673,38805.0,38804.0,0.138829]
[1643758166376,1.44446842,38805.0,38804.0,0.128829]
[1643758166925,1.19446842,38805.0,38804.0,0.128829]
[1643758167523,1.19446842,38805.0,38803.0,0.00146752]
[1643758167724,1.19446842,38805.0,38802.0,0.01]
[1643758167725,0.49077534,38804.0,38802.0,0.01]
[1643758167921,0.83795134,38803.0,38802.0,0.01146753]
[1643758168122,0.88795134,38803.0,38802.0,0.01146753]
[1643758168322,0.88795134,38803.0,38802.0,0.00146753]
[1643758168521,0.98829333,38803.0,38802.0,0.00146753]
[1643758168723,0.93829333,38803.0,38802.0,0.00146753]
[1643758168921,0.93829333,38803.0,38796.0,0.0922136]
[1643758169122,0.34341033,38797.0,38796.0,0.0922136]
[1643758169324,0.69058633,38797.0,38796.0,0.0922136]
[1643758169923,0.89702944,38797.0,38796.0,0.0922136]
[1643758171971,0.064436,38798.0,38796.0,0.0922136]
[1643758172177,0.064419,38801.0,38796.0,0.0922136]
[1643758172372,0.00500196,38802.0,38797.0,0.064417]
[1643758172771,0.00500196,38802.0,38797.0,0.06588463]
[1643758172972,0.00500196,38802.0,38800.0,0.34171478]
[1643758173172,0.00500196,38802.0,38801.0,0.29429738]
[1643758173373,0.10607841,38804.0,38801.0,0.29429738]
[1643758174030,0.10607841,38804.0,38802.0,0.23651044]
[1643758174223,0.10108037,38804.0,38802.0,0.23651044]
[1643758174523,0.16940719,38805.0,38802.0,0.23651044]
[1643758174922,0.16940719,38805.0,38803.0,0.07472805]
[1643758175122,0.54493872,38804.0,38803.0,0.07472805]
[1643758175323,0.79984187,38804.0,38803.0,0.07472805]
[1643758175720,0.79984187,38804.0,38803.0,0.13914105]
[1643758175925,1.0210095,38804.0,38803.0,0.13914105]
[1643758176324,1.06835499,38804.0,38803.0,0.13914105]
[1643758177776,1.06835499,38804.0,38803.0,0.064413]
[1643758179479,1.0210095,38804.0,38802.0,0.00146754]
[1643758179681,0.78686833,38803.0,38802.0,0.00146754]
[1643758179881,0.04274167,38802.0,38801.0,0.01]
[1643758180077,0.80608468,38802.0,38801.0,0.01146755]
[1643758180277,0.77569344,38802.0,38801.0,0.00146755]
[1643758180878,0.50923177,38802.0,38801.0,0.00146755]
[1643758181078,0.50923177,38802.0,38800.0,0.09719753]
[1643758181377,0.40399435,38801.0,38800.0,0.00146758]
[1643758181624,0.75117035,38801.0,38800.0,0.00146758]
[1643758182224,0.597176,38801.0,38796.0,0.064433]
[1643758182429,0.2451102,38798.0,38795.0,0.22948601]
[1643758182626,0.2451102,38798.0,38796.0,0.094756]
[1643758182824,0.347176,38797.0,38796.0,0.094756]
[1643758183324,0.2531043,38798.0,38796.0,0.094756]
[1643758183727,0.3031043,38798.0,38796.0,0.094756]
[1643758183924,0.3031043,38798.0,38796.0,0.159187]
[1643758184126,0.36517698,38798.0,38796.0,0.159187]
[1643758184728,0.3595412,38798.0,38796.0,0.159187]
[1643758185371,0.09834683,38797.0,38796.0,0.41212784]
[1643758185572,0.3595412,38798.0,38796.0,0.41212784]
[1643758185975,0.3595412,38798.0,38796.0,0.159187]
[1643758186573,0.3095412,38798.0,38796.0,0.159187]
[1643758186772,0.3595412,38798.0,38796.0,0.159187]
[1643758188377,0.00015769,38797.0,38796.0,0.159187]
[1643758198922,0.00015769,38797.0,38796.0,0.151927]
[1643758205025,0.00015769,38797.0,38796.0,0.499103]
[1643758205832,0.00015769,38797.0,38796.0,0.151927]
[1643758206832,0.23410372,38799.0,38796.0,0.151927]
[1643758207629,0.23410372,38799.0,38796.0,0.1533931]
[1643758208677,0.23410372,38799.0,38796.0,0.151927]
[1643758208876,0.23410372,38799.0,38796.0,0.1533931]
[1643758209280,0.23410372,38799.0,38798.0,0.03175325]
[1643758209479,0.23410372,38799.0,38798.0,0.0635065]
[1643758209680,0.09411163,38800.0,38798.0,0.0635065]
[1643758210583,0.30412558,38799.0,38798.0,0.0635065]
[1643758210784,0.86227405,38799.0,38798.0,0.0635065]
[1643758211186,1.16227405,38799.0,38798.0,0.0635065]
[1643758211382,1.22127686,38799.0,38798.0,0.0635065]
[1643758211648,0.84363974,38799.0,38798.0,0.0635065]
[1643758211848,1.06496013,38799.0,38798.0,0.0635065]
[1643758213049,1.14046621,38799.0,38798.0,0.0635065]
[1643758216582,1.13746854,38799.0,38798.0,0.0635065]
[1643758217282,1.06196246,38799.0,38798.0,0.0635065]
[1643758219227,0.00740281,38799.0,38798.0,0.0635065]
[1643758219627,0.35477487,38799.0,38798.0,0.0635065]
[1643758220027,0.34737206,38799.0,38798.0,0.0635065]
[1643758220228,0.00019606,38799.0,38798.0,0.0635065]
[1643758221228,0.00019606,38799.0,38798.0,0.29609614]
[1643758231280,0.00603464,38803.0,38799.0,0.06441]
[1643758231482,0.00603464,38803.0,38800.0,0.4565292]
[1643758231680,0.00603464,38803.0,38802.0,0.03175325]
[1643758231884,0.00603464,38803.0,38802.0,0.0635065]
[1643758233482,0.00603464,38803.0,38802.0,0.1279165]
[1643758233883,0.25603464,38803.0,38802.0,0.1279165]
[1643758234149,0.50111536,38808.0,38802.0,0.1279165]
[1643758234150,0.001,38812.0,38805.0,0.25]
[1643758234343,0.00073959,38815.0,38807.0,0.5]
[1643758234554,0.002,38825.0,38809.0,0.55]
[1643758234843,0.002,38826.0,38815.0,0.1]
[1643758235039,0.002,38826.0,38821.0,0.19394007]
[1643758235242,0.004,38830.0,38824.0,0.25]
[1643758235441,0.001,38833.0,38826.0,0.25]
[1643758235639,0.001,38833.0,38827.0,0.346972]
[1643758235838,0.001,38833.0,38828.0,0.3117877]
[1643758236039,0.001,38833.0,38829.0,0.28425111]
[1643758236238,0.001,38833.0,38830.0,0.50675388]
[1643758236541,0.00071796,38832.0,38831.0,0.346934]
[1643758237038,0.00071796,38832.0,38831.0,0.54713163]
[1643758237437,0.001,38833.0,38831.0,0.61148863]
[1643758237636,0.00240744,38833.0,38831.0,0.61148863]
[1643758238574,0.001,38833.0,38831.0,0.61148863]
[1643758238776,0.001,38833.0,38831.0,0.26455463]
[1643758238975,0.001,38833.0,38831.0,0.064357]
[1643758242130,0.001,38833.0,38832.0,0.03175325]
[1643758242334,0.001,38833.0,38832.0,0.0635065]
[1643758244731,0.001,38833.0,38832.0,0.5635065]
[1643758245375,0.001,38833.0,38832.0,0.9106825]
[1643758245579,0.001,38833.0,38832.0,0.0635065]
[1643758245776,0.251,38833.0,38832.0,0.0635065]
[1643758245976,0.648176,38833.0,38832.0,0.0635065]
[1643758246175,0.65581403,38833.0,38832.0,0.0635065]
[1643758247787,0.25,38832.0,38829.0,0.01]
[1643758247979,0.25,38832.0,38814.0,0.22277388]
[1643758247980,0.064391,38828.0,38818.0,0.18267948]
[1643758248178,0.20810729,38822.0,38821.0,0.01]
[1643758248378,0.05,38822.0,38821.0,0.01]
[1643758248777,0.00140744,38825.0,38821.0,0.01]
[1643758249032,0.347176,38824.0,38821.0,0.01]
[1643758249227,0.01788599,38825.0,38820.0,0.28822504]
[1643758249428,0.2507439,38825.0,38823.0,0.10186692]
[1643758249627,0.25140744,38824.0,38823.0,0.16625292]
[1643758250027,0.80623186,38824.0,38823.0,0.16625292]
[1643758250235,0.00140744,38824.0,38823.0,0.16625292]
[1643758250631,0.00539176,38829.0,38823.0,0.16625292]
[1643758250832,0.00140744,38825.0,38823.0,0.16625292]
[1643758251831,0.20840417,38827.0,38823.0,0.16625292]
[1643758252031,0.00140744,38826.0,38823.0,0.064386]
[1643758253079,0.20840417,38827.0,38823.0,0.064386]
[1643758253280,0.00140744,38826.0,38823.0,0.064386]
[1643758253979,0.00140744,38826.0,38823.0,0.15217463]
[1643758254182,0.00658531,38826.0,38823.0,0.15217463]
[1643758254579,0.00799275,38826.0,38823.0,0.15217463]
[1643758255484,0.347176,38825.0,38823.0,0.15217463]
[1643758255680,0.347176,38825.0,38823.0,0.064386]
[1643758255880,0.57959979,38824.0,38823.0,0.064386]
[1643758256080,0.92677579,38824.0,38823.0,0.064386]
[1643758256282,0.82605887,38824.0,38823.0,0.064386]
[1643758257326,0.57605887,38824.0,38823.0,0.064386]
[1643758257527,0.38277414,38824.0,38823.0,0.064386]
[1643758257729,0.347176,38824.0,38823.0,0.064386]
[1643758257931,0.54630325,38824.0,38823.0,0.064386]
[1643758258530,0.397176,38824.0,38823.0,0.064386]
[1643758258931,0.05,38824.0,38823.0,0.064386]
[1643758259133,0.11984234,38825.0,38823.0,0.064386]
[1643758259334,0.12124978,38825.0,38823.0,0.064386]
[1643758259534,0.05686378,38825.0,38823.0,0.064386]
[1643758259735,0.00686378,38825.0,38823.0,0.064386]
[1643758259935,0.00140744,38825.0,38823.0,0.064386]
[1643758260139,0.01,38827.0,38823.0,0.064386]
[1643758260381,0.01,38827.0,38823.0,0.06429521]
[1643758260579,0.00140744,38826.0,38823.0,0.06429521]
[1643758261481,0.01,38827.0,38823.0,0.06429521]
[1643758262284,0.00583398,38830.0,38823.0,0.06429521]
[1643758262490,0.21408086,38833.0,38824.0,0.31707066]
[1643758262491,0.001,38833.0,38824.0,0.31707066]
[1643758262687,0.001,38833.0,38832.0,0.20482327]
[1643758262884,0.001,38833.0,38831.0,0.14359775]
[1643758263882,0.001,38833.0,38832.0,0.10229632]
[1643758264136,0.001,38833.0,38832.0,0.16665632]
[1643758265132,0.00067267,38833.0,38832.0,0.16665632]
[1643758271626,0.25067267,38833.0,38832.0,0.16665632]
[1643758271829,0.25067267,38833.0,38832.0,0.42511238]
[1643758272826,0.25067267,38833.0,38832.0,0.16665632]
[1643758273732,0.25067267,38833.0,38832.0,0.36961024]
[1643758274328,0.00067267,38833.0,38832.0,0.36961024]
[1643758275280,0.00067267,38833.0,38832.0,0.16665632]
[1643758275478,0.25067267,38833.0,38832.0,0.16665632]
[1643758276081,0.25067267,38833.0,38832.0,0.10229632]
[1643758276285,0.59784867,38833.0,38832.0,0.10229632]
[1643758276480,0.25067267,38833.0,38832.0,0.10229632]
[1643758279329,0.25067267,38833.0,38831.0,0.128719]
[1643758279528,0.32872814,38832.0,38831.0,0.128719]
[1643758280526,0.32872814,38832.0,38831.0,0.21895125]
[1643758281128,0.32872814,38832.0,38831.0,0.128719]
[1643758281328,0.37872814,38832.0,38831.0,0.128719]
[1643758283880,0.32872814,38832.0,38831.0,0.128719]
[1643758285187,0.72590414,38832.0,38829.0,0.01]
[1643758285384,0.65134564,38831.0,38829.0,0.01]
[1643758285682,0.48098748,38830.0,38829.0,0.01]
[1643758285883,0.88428541,38830.0,38829.0,0.01]
[1643758286181,0.88428541,38830.0,38825.0,0.22988334]
[1643758286382,0.411559,38829.0,38825.0,0.22988334]
[1643758286634,0.51318159,38829.0,38825.0,0.22988334]
[1643758287032,0.41960362,38829.0,38825.0,0.22988334]
[1643758287330,0.62926936,38829.0,38825.0,0.23988334]
[1643758287531,0.62926936,38829.0,38826.0,0.064381]
[1643758287930,0.62786544,38829.0,38826.0,0.064381]
[1643758288131,0.62926936,38829.0,38826.0,0.064381]
[1643758288330,0.27545266,38829.0,38826.0,0.064381]
[1643758288532,0.347176,38828.0,38826.0,0.064381]
[1643758288735,0.05,38828.0,38826.0,0.064381]
[1643758289533,0.0499327,38828.0,38826.0,0.064381]
[1643758293078,0.347176,38827.0,38826.0,0.064381]
[1643758293377,0.0499327,38828.0,38826.0,0.064381]
[1643758293581,0.347176,38827.0,38825.0,0.01]
[1643758294333,0.06439,38826.0,38821.0,0.128762]
[1643758294928,0.16419992,38826.0,38821.0,0.23305026]
[1643758295530,0.16419992,38826.0,38821.0,0.24305026]
[1643758296233,0.1474961,38825.0,38821.0,0.24305026]
[1643758296430,0.12505517,38824.0,38821.0,0.24305026]
[1643758296630,0.20083096,38823.0,38821.0,0.24305026]
[1643758296836,0.04321172,38822.0,38821.0,0.24305026]
[1643758297236,0.04321172,38822.0,38821.0,0.23305026]
[1643758297781,0.064378,38825.0,38821.0,0.23305026]
[1643758297981,0.04156633,38824.0,38821.0,0.23305026]
[1643758298179,0.064378,38825.0,38821.0,0.23305026]
[1643758298579,0.03431084,38823.0,38821.0,0.23305026]
[1643758298780,0.03317843,38823.0,38821.0,0.23305026]
[1643758298979,0.11227262,38825.0,38821.0,0.23305026]
[1643758299782,0.16227262,38825.0,38821.0,0.23305026]
[1643758300182,0.03944008,38823.0,38821.0,0.23305026]
[1643758301185,0.03944008,38823.0,38821.0,0.2286894]
[1643758301382,0.114378,38825.0,38821.0,0.2286894]
[1643758301383,0.04087799,38822.0,38821.0,0.2286894]
[1643758303433,0.07021697,38823.0,38821.0,0.12440114]
[1643758303632,0.03612133,38822.0,38821.0,0.12440114]
[1643758303833,0.04321287,38821.0,38820.0,0.13023729]
[1643758304132,0.347176,38821.0,38820.0,0.13023729]
[1643758304331,0.397176,38821.0,38820.0,0.13023729]
[1643758304732,0.48977288,38821.0,38820.0,0.128761]
[1643758306682,0.397176,38821.0,38820.0,0.128761]
[1643758306884,0.05,38821.0,38820.0,0.128761]
[1643758307087,0.178784,38822.0,38820.0,0.128761]
[1643758308485,0.347176,38821.0,38820.0,0.128761]
[1643758308689,0.178784,38822.0,38820.0,0.128761]
[1643758309129,0.347176,38821.0,38820.0,0.128761]
[1643758309332,0.178784,38822.0,38820.0,0.128761]
[1643758309541,0.07021697,38823.0,38820.0,0.128761]
[1643758309542,0.00583497,38823.0,38820.0,0.128761]
[1643758309929,0.064378,38825.0,38820.0,0.128761]
[1643758310134,0.01,38826.0,38821.0,0.42878524]
[1643758310337,0.00140376,38827.0,38823.0,0.25]
[1643758310532,0.00140376,38827.0,38824.0,0.70053422]
[1643758310731,0.01942455,38833.0,38830.0,0.31534876]
[1643758310931,0.01942455,38833.0,38831.0,0.79582004]
[1643758311133,0.00067267,38833.0,38831.0,0.31908348]
[1643758311932,0.06503767,38833.0,38831.0,0.31908348]
[1643758312335,0.06503767,38833.0,38832.0,0.064355]
[1643758312979,0.31503767,38833.0,38832.0,0.064355]
[1643758313280,0.36503767,38833.0,38832.0,0.064355]
[1643758314280,0.57865952,38833.0,38832.0,0.064355]
[1643758314885,0.92583552,38833.0,38832.0,0.064355]
[1643758315081,0.92583552,38833.0,38831.0,0.128709]
[1643758315285,0.84132187,38832.0,38830.0,0.01]
[1643758315485,0.51874531,38831.0,38830.0,0.01]
[1643758315685,0.89769461,38831.0,38830.0,0.01]
[1643758315881,1.24763595,38831.0,38830.0,0.01]
[1643758316080,1.33301113,38831.0,38830.0,0.01]
[1643758318033,1.33301113,38831.0,38825.0,0.27396191]
[1643758318034,0.347176,38831.0,38825.0,0.27396191]
[1643758318233,0.064383,38829.0,38825.0,0.27396191]
[1643758318436,0.064383,38829.0,38826.0,0.20634153]
[1643758319035,0.24695431,38828.0,38824.0,0.128754]
[1643758319234,0.29695431,38828.0,38824.0,0.128754]
[1643758319436,0.65811553,38828.0,38824.0,0.138754]
[1643758319735,0.25551024,38825.0,38824.0,0.138754]
[1643758320384,0.45980879,38825.0,38824.0,0.128754]
[1643758321285,0.50980879,38825.0,38824.0,0.128754]
[1643758321887,0.22408728,38827.0,38824.0,0.22235848]
[1643758322090,0.01110764,38827.0,38824.0,0.22235848]
[1643758322493,0.00110764,38827.0,38825.0,0.17081027]
[1643758322689,0.1962302,38832.0,38825.0,0.17081027]
[1643758322888,0.00110766,38827.0,38825.0,0.17081027]
[1643758323192,0.00110766,38827.0,38825.0,0.24292128]
[1643758323388,0.00110766,38827.0,38826.0,0.064367]
[1643758323590,0.01,38829.0,38826.0,0.064367]
[1643758323797,0.00067267,38833.0,38828.0,0.3787]
[1643758324037,0.00067267,38833.0,38829.0,0.455867]
[1643758324232,0.00067267,38833.0,38830.0,0.27777335]
[1643758324432,0.00067267,38833.0,38832.0,0.37188628]
[1643758324631,0.00067267,38833.0,38832.0,0.83501128]
[1643758325836,0.00067267,38833.0,38832.0,1.08791474]
[1643758326435,0.00067267,38833.0,38832.0,0.83501128]
[1643758327646,0.001,38842.0,38834.0,0.064348]
[1643758327891,0.001,38842.0,38835.0,0.398776]
[1643758327892,0.00560376,38840.0,38835.0,0.398776]
[1643758328090,0.03913761,38848.0,38838.0,0.1]
[1643758328290,0.48671974,38855.0,38839.0,0.57573895]
[1643758328488,0.48671974,38855.0,38844.0,0.37152215]
[1643758328489,0.01,38846.0,38844.0,0.37152215]
[1643758328688,0.011,38853.0,38846.0,0.25806129]
[1643758328889,0.011,38853.0,38846.0,0.35598111]
[1643758329289,0.011,38853.0,38846.0,0.36598111]
[1643758329290,0.011,38850.0,38846.0,0.36598111]
[1643758329493,0.001,38855.0,38848.0,0.2]
[1643758329693,0.001,38855.0,38849.0,0.347176]
[1643758329992,0.02107114,38857.0,38850.0,0.3729247]
[1643758330302,0.02107114,38857.0,38852.0,0.27014319]
[1643758330492,0.02107114,38857.0,38853.0,0.33021366]
[1643758330695,0.03107114,38857.0,38853.0,0.33021366]
[1643758331299,0.03107114,38857.0,38853.0,0.58042775]
[1643758331300,0.03245828,38857.0,38853.0,0.58042775]
[1643758331537,0.02245828,38857.0,38854.0,0.347176]
[1643758331931,0.02245828,38857.0,38853.0,0.33021366]
[1643758332131,0.02245828,38857.0,38854.0,0.0516]
[1643758332332,0.02107114,38857.0,38854.0,0.0516]
[1643758332533,0.002,38860.0,38858.0,0.06431]
[1643758332733,0.00152044,38861.0,38860.0,0.0118]
[1643758333334,0.00152044,38861.0,38860.0,0.09077892]
[1643758333541,0.27240354,38862.0,38860.0,0.0118]
[1643758333735,0.847176,38861.0,38860.0,0.0118]
[1643758333939,0.95181371,38861.0,38860.0,0.0001]
[1643758334133,0.70892167,38861.0,38860.0,0.0001]
[1643758334333,0.75892167,38861.0,38860.0,0.0001]
[1643758334533,0.647176,38861.0,38860.0,0.0001]
[1643758334933,0.49600704,38861.0,38860.0,0.0001]
[1643758335137,0.4905153,38861.0,38860.0,0.0001]
[1643758335989,0.064315,38863.0,38860.0,0.0001]
[1643758336191,0.34855967,38862.0,38860.0,0.0001]
[1643758336790,0.34855967,38862.0,38861.0,0.23825608]
[1643758337192,0.347176,38862.0,38861.0,0.23825608]
[1643758337592,0.39165575,38863.0,38861.0,0.23825608]
[1643758337792,0.347176,38862.0,38861.0,0.23825608]
[1643758338198,0.44328954,38862.0,38861.0,0.23825608]
[1643758338593,0.09221501,38862.0,38861.0,0.23825608]
[1643758340329,0.06569867,38863.0,38861.0,0.2380489]
[1643758340529,0.347176,38862.0,38861.0,0.2380489]
[1643758341729,0.12016174,38863.0,38861.0,0.2380489]
[1643758341936,0.2536621,38874.0,38861.0,0.2380489]
[1643758341937,0.0679811,38874.0,38863.0,0.25]
[1643758342132,0.0679811,38874.0,38867.0,0.26965352]
[1643758342133,0.00553386,38869.0,38867.0,0.26965352]
[1643758342332,0.00553386,38869.0,38868.0,0.69660321]
[1643758342783,0.00553386,38869.0,38868.0,0.89644225]
[1643758342982,0.00553386,38869.0,38868.0,0.79393129]
[1643758343182,0.01,38872.0,38868.0,0.79393129]
[1643758343883,0.0136621,38879.0,38868.0,0.73268425]
[1643758344084,0.04464392,38878.0,38868.0,0.25704825]
[1643758344283,0.04464392,38878.0,38868.0,0.52604399]
[1643758344284,0.0366741,38877.0,38868.0,0.52604399]
[1643758344485,0.00068665,38875.0,38869.0,0.398644]
[1643758344684,0.00068665,38875.0,38870.0,0.064297]
[1643758344888,0.10338688,38874.0,38870.0,0.115897]
[1643758345085,0.23042046,38873.0,38870.0,0.064297]
[1643758345283,0.03507821,38872.0,38868.0,0.01]
[1643758345488,0.000401,38880.0,38869.0,0.648644]
[1643758345690,0.000401,38880.0,38870.0,0.064303]
[1643758345691,0.00136638,38873.0,38870.0,0.064303]
[1643758345893,0.00136638,38873.0,38871.0,0.347044]
[1643758346088,0.00136638,38873.0,38870.0,0.064303]
[1643758346284,0.00136638,38873.0,38868.0,0.0114941]
[1643758346285,0.07906457,38872.0,38868.0,0.0114941]
[1643758346542,0.00136638,38873.0,38868.0,0.0114941]
[1643758346834,0.01,38873.0,38868.0,0.01]
[1643758347533,0.25662348,38872.0,38868.0,0.01]
[1643758347935,0.23042046,38871.0,38868.0,0.01]
[1643758348137,0.3898729,38870.0,38868.0,0.01]
[1643758348336,0.51739147,38869.0,38868.0,0.01]
[1643758348639,0.87746446,38869.0,38862.0,0.128619]
[1643758348834,0.27491093,38863.0,38862.0,0.128619]
[1643758349038,0.35954885,38863.0,38859.0,0.128629]
[1643758349337,0.35954885,38863.0,38860.0,0.0001]
[1643758349338,0.05,38861.0,38860.0,0.0001]
[1643758349735,0.3710877,38863.0,38860.0,0.0001]
[1643758350685,0.09461872,38862.0,38860.0,0.06591511]
[1643758350884,0.09461872,38862.0,38861.0,0.09640882]
[1643758351084,0.09461872,38862.0,38860.0,0.06591511]
[1643758351485,0.09461872,38862.0,38860.0,0.06442]
[1643758351685,0.19191949,38861.0,38860.0,0.06442]
[1643758351887,0.2259361,38861.0,38860.0,0.06442]
[1643758352088,0.47969998,38861.0,38860.0,0.06442]
[1643758352587,0.44568337,38861.0,38860.0,0.06442]
[1643758353390,0.79272737,38861.0,38860.0,0.0001]
[1643758353688,0.89106772,38861.0,38860.0,0.0001]
[1643758353892,0.80074823,38861.0,38860.0,0.0001]
[1643758354139,0.448648,38861.0,38860.0,0.0001]
[1643758354338,0.55313339,38861.0,38860.0,0.0001]
[1643758354538,0.15448539,38861.0,38860.0,0.0001]
[1643758355535,0.40465163,38861.0,38860.0,0.0001]
[1643758356138,0.39134155,38861.0,38860.0,0.0001]
[1643758356637,0.00016624,38861.0,38860.0,0.0001]
[1643758357144,0.00016624,38861.0,38860.0,0.347148]
[1643758357339,0.00016624,38861.0,38860.0,0.321398]
[1643758357538,0.00016624,38861.0,38859.0,0.17649032]
[1643758357791,0.00016624,38861.0,38859.0,0.17798545]
[1643758358787,0.00016624,38861.0,38860.0,0.22433971]
[1643758359192,0.00016624,38861.0,38860.0,0.82135203]
[1643758359387,0.00016624,38861.0,38860.0,0.57138771]
[1643758361293,0.00516624,38864.0,38861.0,0.15]
[1643758361539,0.23591304,38869.0,38860.0,0.21450971]
[1643758361540,0.00483376,38866.0,38860.0,0.21450971]
[1643758361732,0.00483376,38866.0,38860.0,0.21032971]
[1643758362336,0.00483376,38866.0,38859.0,0.17649032]
[1643758362337,0.23789461,38865.0,38859.0,0.17649032]
[1643758362533,0.10452413,38865.0,38861.0,0.00149508]
[1643758362733,0.10556243,38863.0,38861.0,0.00149508]
[1643758363533,0.14737082,38863.0,38859.0,0.34948588]
[1643758363832,0.03762322,38861.0,38860.0,0.0014951]
[1643758364037,0.04450738,38861.0,38860.0,0.0014951]
[1643758364233,0.10556243,38863.0,38860.0,0.0014951]
[1643758364634,0.14255346,38863.0,38859.0,0.34948588]
[1643758364834,0.10556243,38863.0,38860.0,0.00149511]
[1643758365034,0.04118657,38861.0,38860.0,0.00149511]
[1643758365279,0.10556243,38863.0,38860.0,0.00149511]
[1643758365479,0.03702718,38861.0,38860.0,0.00149511]
[1643758365680,0.10556243,38863.0,38860.0,0.00149511]
[1643758365878,0.04344705,38861.0,38859.0,0.34948588]
[1643758366079,0.13973421,38863.0,38860.0,0.00149511]
[1643758366279,0.10556243,38863.0,38860.0,0.00149511]
[1643758366479,0.04852524,38861.0,38860.0,0.00149511]
[1643758366687,0.04611155,38861.0,38860.0,0.00149511]
[1643758366881,0.00015246,38862.0,38860.0,0.00149511]
[1643758367081,0.03851349,38861.0,38859.0,0.34948588]
[1643758367381,0.00015246,38862.0,38859.0,0.350981]
[1643758367580,0.03978637,38861.0,38859.0,0.350981]
[1643758367786,0.00015246,38862.0,38859.0,0.350981]
[1643758367982,0.03322745,38861.0,38859.0,0.350981]
[1643758368282,0.03613404,38861.0,38859.0,0.34948588]
[1643758368482,0.00015246,38862.0,38859.0,0.34948588]
[1643758369029,0.03302382,38861.0,38859.0,0.34948588]
[1643758369233,0.00015246,38862.0,38859.0,0.34948588]
[1643758369631,0.04060459,38861.0,38859.0,0.35098101]
[1643758369829,0.00015246,38862.0,38859.0,0.35098101]
[1643758370430,0.04138708,38861.0,38859.0,0.35098101]
[1643758370629,0.03481067,38861.0,38859.0,0.34948588]
[1643758370832,0.00015246,38862.0,38859.0,0.34948588]
[1643758371733,0.00015246,38862.0,38859.0,0.38806938]
[1643758372131,0.00015246,38862.0,38859.0,0.38956451]
[1643758372882,0.00015246,38862.0,38859.0,0.07581713]
[1643758373083,0.00015246,38862.0,38859.0,0.074322]
[1643758373283,0.10463502,38861.0,38859.0,0.01149513]
[1643758373485,0.09755673,38861.0,38859.0,0.01149513]
[1643758373686,0.05,38860.0,38859.0,0.01149513]
[1643758373884,0.09755673,38861.0,38859.0,0.01149513]
[1643758374085,0.05,38860.0,38859.0,0.08694682]
[1643758374289,0.10308673,38861.0,38859.0,0.08545169]
[1643758374489,0.09322572,38861.0,38859.0,0.14977369]
[1643758374687,0.09317577,38861.0,38859.0,0.14977369]
[1643758374888,0.00015246,38862.0,38859.0,0.074322]
[1643758375087,0.00516624,38865.0,38861.0,0.2]
[1643758375287,0.00516624,38865.0,38862.0,1.04797989]
[1643758375586,0.00483376,38867.0,38864.0,0.0643]
[1643758376633,0.05516624,38869.0,38864.0,0.0643]
[1643758376836,0.15711663,38869.0,38864.0,0.06579502]
[1643758377034,0.10711663,38869.0,38864.0,0.06579502]
[1643758377232,0.05,38868.0,38864.0,0.06579502]
[1643758377636,0.05516624,38869.0,38864.0,0.06579502]
[1643758377832,0.05516624,38869.0,38864.0,0.0643]
[1643758378033,0.05516624,38869.0,38865.0,0.001495]
[1643758378234,0.00516624,38869.0,38865.0,0.001495]
[1643758378434,0.15456681,38870.0,38865.0,0.001495]
[1643758378933,0.14956681,38870.0,38865.0,0.001495]
[1643758379134,0.14956681,38870.0,38864.0,0.16199862]
[1643758379343,0.09956681,38870.0,38866.0,0.00149498]
[1643758379538,0.00516624,38871.0,38867.0,0.128594]
[1643758379739,0.00516624,38871.0,38868.0,0.58597764]
[1643758380140,0.00516624,38871.0,38869.0,0.28006473]
[1643758380386,0.00516624,38871.0,38870.0,0.4346634]
[1643758380585,0.00483376,38873.0,38869.0,0.53983055]
[1643758381286,0.00483376,38873.0,38869.0,0.60411855]
[1643758381486,0.00516624,38874.0,38869.0,0.60411855]
[1643758381686,0.00516624,38874.0,38869.0,0.60561346]
[1643758381888,0.00516624,38874.0,38869.0,0.35584764]
[1643758382085,0.00516624,38874.0,38869.0,0.07578291]
[1643758382488,0.05136452,38877.0,38870.0,0.25525992]
[1643758382489,0.00483376,38875.0,38870.0,0.25525992]
[1643758382688,0.00483376,38875.0,38872.0,0.128565]
[1643758383288,0.00136458,38877.0,38873.0,0.85006689]
[1643758383688,0.00136458,38877.0,38873.0,0.50301889]
[1643758383889,0.005401,38880.0,38874.0,0.064278]
[1643758384132,0.00136466,38877.0,38874.0,0.064278]
[1643758385132,0.01,38879.0,38874.0,0.064278]
[1643758385331,0.00136466,38877.0,38874.0,0.064278]
[1643758385533,0.347048,38876.0,38874.0,0.064278]
[1643758385731,0.03301355,38875.0,38874.0,0.064278]
[1643758385930,0.54680955,38875.0,38874.0,0.064278]
[1643758386531,0.77980949,38875.0,38874.0,0.064278]
[1643758386832,0.34680955,38875.0,38874.0,0.064278]
[1643758387034,0.03301355,38875.0,38874.0,0.064278]
[1643758387434,0.73366148,38875.0,38874.0,0.064278]
[1643758387781,0.95234387,38875.0,38874.0,0.064278]
[1643758388389,0.00136465,38877.0,38874.0,0.264278]
[1643758388586,0.00136465,38877.0,38875.0,0.346975]
[1643758388786,0.01,38879.0,38876.0,0.18506446]
[1643758389087,0.01,38879.0,38878.0,0.064281]
[1643758389286,0.01,38879.0,38878.0,0.96695258]
[1643758389694,0.01,38879.0,38878.0,0.61997758]
[1643758389886,0.7,38884.0,38878.0,0.54029295]
[1643758390087,0.69531125,38884.0,38878.0,0.54029295]
[1643758390387,0.00136466,38880.0,38878.0,0.064281]
[1643758391090,0.12529877,38882.0,38878.0,0.064281]
[1643758391290,0.00136466,38881.0,38878.0,0.064281]
[1643758391540,0.00136466,38881.0,38878.0,0.074281]
[1643758392338,0.74531125,38884.0,38878.0,0.074281]
[1643758392534,0.00136466,38881.0,38878.0,0.074281]
[1643758393136,0.23941176,38880.0,38878.0,0.074281]
[1643758393539,0.79340875,38884.0,38878.0,0.074281]
[1643758393739,0.00136373,38883.0,38878.0,0.074281]
[1643758394741,0.79340875,38884.0,38878.0,0.074281]